fUSD/lending_fUSD_20240423
["ID","MTS","AMOUNT","RATE_DAILY","PERIOD"]
[323278945,1713867038859,-500.0,0.00011478,2]
[323278947,1713867038869,-434.96418336,0.00011478,2]
[323278949,1713867038878,-500.0,0.00011478,2]
[323278951,1713867038887,-500.0,0.00011478,2]
[323278953,1713867038896,-500.0,0.00011478,2]
[323278955,1713867038906,-500.0,0.00011478,2]
[323278957,1713867038915,-500.0,0.00011478,2]
[323278959,1713867038924,-500.0,0.00011478,2]
[323278961,1713867038933,-503.09816844,0.00011478,2]
[323278963,1713867038942,-574.96461919,0.00011478,2]
[323278965,1713867038951,-500.0,0.00011478,2]
[323278967,1713867038963,-500.0,0.00011478,2]
[323278969,1713867038972,-500.0,0.00011478,2]
[323278971,1713867038981,-504.73647205,0.00011478,2]
[323278973,1713867038991,-500.0,0.00011478,2]
[323278975,1713867039000,-500.0,0.00011478,2]
[323278977,1713867039009,-500.0,0.00011478,2]
[323278979,1713867039017,-500.0,0.00011478,2]
[323278981,1713867039026,-500.0,0.00011478,2]
[323278983,1713867039035,-500.0,0.00011478,2]
[323278985,1713867039044,-517.8,0.00011478,2]
[323278987,1713867039053,-500.0,0.00011478,2]
[323278989,1713867039062,-500.0,0.00011478,2]
[323278991,1713867039072,-500.0,0.00011478,2]
[323278993,1713867039083,-500.0,0.00011478,2]
[323278995,1713867039093,-500.0,0.00011478,2]
[323278997,1713867039102,-500.0,0.00011478,2]
[323278999,1713867039111,-500.0,0.00011478,2]
[323279001,1713867039120,-500.0,0.00011478,2]
[323279003,1713867039129,-500.0,0.00011478,2]
[323279005,1713867039139,-500.0,0.00011478,2]
[323279007,1713867039148,-500.0,0.00011478,2]
[323279009,1713867039158,-500.0,0.00011478,2]
[323279011,1713867039166,-506.89035017,0.00011478,2]
[323279013,1713867039175,-505.26171624,0.00011478,2]
[323279015,1713867039185,-506.88789594,0.00011478,2]
[323279017,1713867039195,-500.0,0.00011478,2]
[323279019,1713867039209,-500.0,0.00011478,2]
[323279021,1713867039219,-500.0,0.00011478,2]
[323279023,1713867039229,-500.0,0.00011478,2]
[323279025,1713867039239,-485.53135173,0.00011478,2]
[323279027,1713867039249,-572.54,0.00011478,2]
[323279029,1713867039258,-500.0,0.00011478,2]
[323279031,1713867039267,-718.37,0.00011478,2]
[323279033,1713867039278,-998.77,0.00011478,2]
[323279035,1713867039287,-500.0,0.00011478,2]
[323279037,1713867039296,-500.0,0.00011478,2]
[323279039,1713867039305,-500.0,0.00011478,2]
[323279041,1713867039315,-500.0,0.00011478,2]
[323279043,1713867039324,-500.0,0.00011478,2]
[323279045,1713867039334,-500.0,0.00011478,2]
[323279048,1713867039343,-500.0,0.00011478,2]
[323279050,1713867039352,-500.0,0.00011478,2]
[323279052,1713867039362,-529.88033474,0.00011478,2]
[323279053,1713867039371,-500.0,0.00011478,2]
[323279056,1713867039380,-500.0,0.00011478,2]
[323279058,1713867039389,-500.0,0.00011478,2]
[323279060,1713867039398,-611.81012403,0.00011478,2]
[323279062,1713867039407,-500.0,0.00011478,2]
[323279064,1713867039416,-504.91672357,0.00011478,2]
[323279066,1713867039426,-150.0,0.00011478,2]
[323279068,1713867039435,-1054.7,0.00011478,2]
[323279070,1713867039444,-500.0,0.00011478,2]
[323279072,1713867039453,-527.3631521,0.00011478,2]
[323279074,1713867039462,-450.68402175,0.00011478,2]
[323279076,1713867039472,-500.0,0.00011478,2]
[323279078,1713867039481,-500.0,0.00011478,2]
[323279080,1713867039491,-500.0,0.00011478,2]
[323279082,1713867039500,-500.0,0.00011478,2]
[323279084,1713867039509,-500.0,0.00011478,2]
[323279086,1713867039518,-500.0,0.00011478,2]
[323279121,1713867039526,-1309.29,0.00011478,2]
[323279124,1713867039809,-500.0,0.00011478,2]
[323279126,1713867039818,-500.0,0.00011478,2]
[323279128,1713867039827,-500.0,0.00011478,2]
[323279130,1713867039836,-501.98197262,0.00011478,2]
[323279132,1713867039845,-500.0,0.00011478,2]
[323279133,1713867039854,-933.95,0.00011478,2]
[323279135,1713867039863,-500.0,0.00011478,2]
[323279138,1713867039873,-500.0,0.00011478,2]
[323279139,1713867039882,-500.0,0.00011478,2]
[323279141,1713867039891,-500.0,0.00011478,2]
[323279143,1713867039901,-500.0,0.00011478,2]
[323279146,1713867039910,-500.0,0.00011478,2]
[323279148,1713867039920,-500.0,0.00011478,2]
[323279150,1713867039929,-500.0,0.00011478,2]
[323279152,1713867039938,-555.3901913,0.00011478,2]
[323279154,1713867039947,-500.0,0.00011478,2]
[323279156,1713867039956,-500.0,0.00011478,2]
[323279158,1713867039967,-1478.59,0.00011478,2]
[323279160,1713867039976,-500.0,0.00011478,2]
[323279162,1713867039985,-503.91555752,0.00011478,2]
[323279164,1713867039994,-500.0,0.00011478,2]
[323279166,1713867040003,-500.0,0.00011478,2]
[323279168,1713867040012,-501.21823171,0.00011478,2]
[323279170,1713867040021,-991.71,0.00011478,2]
[323279172,1713867040031,-500.0,0.00011478,2]
[323279174,1713867040040,-502.36814552,0.00011478,2]
[323279176,1713867040049,-500.0,0.00011478,2]
[323279178,1713867040058,-288.81471377,0.00011478,2]
[323279180,1713867040067,-500.0,0.00011478,2]
[323279182,1713867040076,-504.64,0.00011478,2]
[323279184,1713867040086,-632.08477396,0.00011478,2]
[323279186,1713867040095,-500.0,0.00011478,2]
[323279188,1713867040104,-500.0,0.00011478,2]
[323279190,1713867040114,-1069.11,0.00011478,2]
[323279191,1713867040123,-646.6962572,0.00011478,2]
[323279192,1713867040132,-1125.51,0.00011478,2]
[323279193,1713867040141,-500.0,0.00011478,2]
[323279194,1713867040150,-527.96,0.00011478,2]
[323279195,1713867040159,-500.0,0.00011478,2]
[323279196,1713867040167,-208.65042021,0.00011478,2]
[323279197,1713867040176,-500.0,0.00011478,2]
[323279198,1713867040185,-150.0,0.00011478,2]
[323279199,1713867040196,-534.62551604,0.00011478,2]
[323279200,1713867040207,-500.0,0.00011478,2]
[323279202,1713867040218,-500.0,0.00011478,2]
[323279204,1713867040228,-500.0,0.00011478,2]
[323279206,1713867040238,-500.0,0.00011478,2]
[323279208,1713867040247,-500.0,0.00011478,2]
[323279210,1713867040256,-500.0,0.00011478,2]
[323279212,1713867040265,-500.0,0.00011478,2]
[323279214,1713867040275,-500.0,0.00011478,2]
[323279216,1713867040285,-630.60210235,0.00011478,2]
[323279218,1713867040294,-500.0,0.00011478,2]
[323279220,1713867040304,-500.0,0.00011478,2]
[323279222,1713867040314,-500.0,0.00011478,2]
[323279224,1713867040323,-500.0,0.00011478,2]
[323279226,1713867040333,-500.0,0.00011478,2]
[323279228,1713867040341,-500.0,0.00011478,2]
[323279230,1713867040351,-500.0,0.00011478,2]
[323279232,1713867040360,-500.0,0.00011478,2]
[323279234,1713867040368,-500.0,0.00011478,2]
[323279236,1713867040378,-906.24,0.00011478,2]
[323279238,1713867040387,-500.0,0.00011478,2]
[323279240,1713867040396,-500.0,0.00011478,2]
[323279242,1713867040405,-500.0,0.00011478,2]
[323279244,1713867040414,-514.13339924,0.00011478,2]
[323279246,1713867040423,-500.0,0.00011478,2]
[323279248,1713867040432,-500.0,0.00011478,2]
[323279250,1713867040442,-579.04,0.00011478,2]
[323279252,1713867040451,-1411.05,0.00011478,2]
[323279254,1713867040460,-630.12768889,0.00011478,2]
[323279256,1713867040469,-500.0,0.00011478,2]
[323279258,1713867040478,-500.0,0.00011478,2]
[323279260,1713867040488,-500.0,0.00011478,2]
[323279262,1713867040497,-500.0,0.00011478,2]
[323279264,1713867040506,-500.0,0.00011478,2]
[323279266,1713867040516,-500.0,0.00011478,2]
[323279268,1713867040525,-500.0,0.00011478,2]
[323279270,1713867040534,-924.09,0.00011478,2]
[323279272,1713867040543,-500.0,0.00011478,2]
[323279274,1713867040555,-500.0,0.00011478,2]
[323279276,1713867040564,-929.28,0.00011478,2]
[323279278,1713867040574,-500.0,0.00011478,2]
[323279280,1713867040583,-698.26,0.00011478,2]
[323279282,1713867040593,-500.0,0.00011478,2]
[323279284,1713867040602,-500.0,0.00011478,2]
[323279286,1713867040611,-500.0,0.00011478,2]
[323279288,1713867040620,-500.0,0.00011478,2]
[323279290,1713867040629,-500.0,0.00011478,2]
[323279292,1713867040638,-500.0,0.00011478,2]
[323279294,1713867040647,-745.76,0.00011478,2]
[323279296,1713867040657,-500.0,0.00011478,2]
[323279298,1713867040666,-177.17,0.00011478,2]
[323279300,1713867040675,-500.0,0.00011478,2]
[323279303,1713867040684,-892.42,0.00011478,2]
[323279305,1713867040693,-501.37179699,0.00011478,2]
[323279307,1713867040702,-500.0,0.00011478,2]
[323279308,1713867040713,-466.8761274,0.00011478,2]
[323279311,1713867040722,-297.98277732,0.00011478,2]
[323279313,1713867040731,-252.91472118,0.00011478,2]
[323279314,1713867040742,-500.0,0.00011478,2]
[323279316,1713867040752,-618.95,0.00011478,2]
[323279319,1713867040761,-500.0,0.00011478,2]
[323279321,1713867040771,-500.0,0.00011478,2]
[323279323,1713867040779,-500.0,0.00011478,2]
[323279325,1713867040789,-500.0,0.00011478,2]
[323279326,1713867040798,-500.0,0.00011478,2]
[323279329,1713867040807,-500.0,0.00011478,2]
[323279330,1713867040816,-669.49,0.00011478,2]
[323279332,1713867040825,-500.0,0.00011478,2]
[323279334,1713867040835,-500.0,0.00011478,2]
[323279337,1713867040844,-500.0,0.00011478,2]
[323279338,1713867040854,-500.0,0.00011478,2]
[323279340,1713867040863,-500.0,0.00011478,2]
[323279342,1713867040873,-365.15484592,0.00011478,2]
[323279345,1713867040883,-842.34,0.00011478,2]
[323279347,1713867040893,-500.0,0.00011478,2]
[323279348,1713867040902,-500.0,0.00011478,2]
[323279350,1713867040912,-49013.54,0.00011478,2]
[323279352,1713867040922,-847.59,0.00011478,2]
[323279355,1713867040933,-420.76452259,0.00011478,2]
[323279357,1713867040943,-500.0,0.00011478,2]
[323279359,1713867040953,-276.87277495,0.00011478,2]
[323279361,1713867040965,-500.0,0.00011478,2]
[323279363,1713867040978,-500.0,0.00011478,2]
[323279365,1713867040989,-500.0,0.00011478,2]
[323279367,1713867040998,-500.0,0.00011478,2]
[323279369,1713867041007,-150.43829457,0.00011478,2]
[323279371,1713867041015,-500.0,0.00011478,2]
[323279373,1713867041024,-500.0,0.00011478,2]
[323279375,1713867041033,-5611.14,0.00011478,2]
[323279377,1713867041042,-352.40420208,0.00011478,2]
[323279379,1713867041051,-506.00049359,0.00011478,2]
[323279381,1713867041060,-500.0,0.00011478,2]
[323279383,1713867041070,-500.0,0.00011478,2]
[323279385,1713867041079,-500.0,0.00011478,2]
[323279387,1713867041088,-1363.73,0.00011478,2]
[323279389,1713867041097,-500.0,0.00011478,2]
[323279391,1713867041106,-500.0,0.00011478,2]
[323279393,1713867041115,-500.0,0.00011478,2]
[323279395,1713867041124,-500.0,0.00011478,2]
[323279397,1713867041133,-500.0,0.00011478,2]
[323279399,1713867041142,-1202.05,0.00011478,2]
[323279401,1713867041152,-500.0,0.00011478,2]
[323279403,1713867041160,-500.0,0.00011478,2]
[323279405,1713867041170,-500.0,0.00011478,2]
[323279407,1713867041179,-2041.66,0.00011478,2]
[323279409,1713867041189,-500.0,0.00011478,2]
[323279412,1713867041201,-500.0,0.00011478,2]
[323279413,1713867041212,-500.0,0.00011478,2]
[323279415,1713867041221,-184.29812536,0.00011478,2]
[323279418,1713867041231,-1322.83,0.00011478,2]
[323279420,1713867041242,-5926.47,0.00011478,2]
[323279422,1713867041251,-500.0,0.00011478,2]
[323279424,1713867041261,-500.0,0.00011478,2]
[323279425,1713867041271,-500.0,0.00011478,2]
[323279427,1713867041280,-500.0,0.00011478,2]
[323279429,1713867041289,-500.0,0.00011478,2]
[323279431,1713867041298,-6165.77,0.00011478,2]
[323279434,1713867041308,-6165.77,0.00011478,2]
[323279436,1713867041317,-6165.77,0.00011478,2]
[323279438,1713867041326,-6165.77,0.00011478,2]
[323279440,1713867041335,-6165.77,0.00011478,2]
[323279441,1713867041344,-6165.77,0.00011478,2]
[323279443,1713867041353,-6165.77,0.00011478,2]
[323279445,1713867041363,-6165.77,0.00011478,2]
[323279447,1713867041372,-6165.77,0.00011478,2]
[323279450,1713867041381,-6165.77,0.00011478,2]
[323279452,1713867041391,-500.0,0.00011478,2]
[323279453,1713867041400,-500.0,0.00011478,2]
[323279455,1713867041409,-6165.77,0.00011478,2]
[323279458,1713867041419,-6165.77,0.00011478,2]
[323279460,1713867041428,-6165.77,0.00011478,2]
[323279462,1713867041437,-6165.77,0.00011478,2]
[323279463,1713867041446,-6165.77,0.00011478,2]
[323279465,1713867041455,-3364.03100643,0.00011478,2]
[323279507,1713867041847,-2801.73899357,0.00011478,2]
[323279509,1713867041856,-6165.77,0.00011478,2]
[323279511,1713867041865,-6165.77,0.00011478,2]
[323279513,1713867041875,-6165.77,0.00011478,2]
[323279515,1713867041884,-6165.77,0.00011478,2]
[323279518,1713867041893,-6165.77,0.00011478,2]
[323279519,1713867041902,-500.0,0.00011478,2]
[323279521,1713867041911,-3110.33773802,0.00011478,2]
[323279558,1713867042244,-3055.43226198,0.00011478,2]
[323279560,1713867042253,-6165.77,0.00011478,2]
[323279562,1713867042262,-6165.89567452,0.00011478,2]
[323279563,1713867042272,-500.0,0.00011478,2]
[323279564,1713867042282,-679.69,0.00011478,2]
[323279565,1713867042291,-500.0,0.00011478,2]
[323279566,1713867042300,-875.23,0.00011478,2]
[323279567,1713867042309,-500.0,0.00011478,2]
[323279568,1713867042319,-500.0,0.00011478,2]
[323279569,1713867042329,-577.41,0.00011478,2]
[323279570,1713867042338,-500.0,0.00011478,2]
[323279571,1713867042347,-652.98,0.00011478,2]
[323279572,1713867042357,-500.0,0.00011478,2]
[323279574,1713867042366,-500.0,0.00011478,2]
[323279576,1713867042375,-500.0,0.00011478,2]
[323279578,1713867042385,-501.83,0.00011478,2]
[323279580,1713867042394,-500.0,0.00011478,2]
[323279582,1713867042403,-500.0,0.00011478,2]
[323279584,1713867042412,-474.99119428,0.00011478,2]
[323279586,1713867042421,-500.0,0.00011478,2]
[323279588,1713867042430,-500.0,0.00011478,2]
[323279590,1713867042439,-397.79494464,0.00011478,2]
[323279592,1713867042449,-4894.9,0.00011478,2]
[323279594,1713867042458,-500.0,0.00011478,2]
[323279596,1713867042469,-527.38,0.00011478,2]
[323279598,1713867042479,-500.0,0.00011478,2]
[323279601,1713867042488,-2063.91,0.00011478,2]
[323279603,1713867042497,-500.0,0.00011478,2]
[323279605,1713867042506,-500.0,0.00011478,2]
[323279607,1713867042515,-1071.87,0.00011478,2]
[323279609,1713867042524,-500.0,0.00011478,2]
[323279611,1713867042534,-500.0,0.00011478,2]
[323279613,1713867042543,-312.82546758,0.00011478,2]
[323279615,1713867042552,-500.0,0.00011478,2]
[323279617,1713867042562,-500.0,0.00011478,2]
[323279619,1713867042571,-500.0,0.00011478,2]
[323279621,1713867042580,-3826.06,0.00011478,2]
[323279623,1713867042589,-2446.94,0.00011478,2]
[323279625,1713867042598,-828.47,0.00011478,2]
[323279627,1713867042607,-500.0,0.00011478,2]
[323279630,1713867042618,-500.0,0.00011478,2]
[323279632,1713867042627,-500.0,0.00011478,2]
[323279634,1713867042636,-500.0,0.00011478,2]
[323279636,1713867042645,-1178.64,0.00011478,2]
[323279638,1713867042654,-3221.84,0.00011478,2]
[323279639,1713867042664,-500.0,0.00011478,2]
[323279641,1713867042673,-500.0,0.00011478,2]
[323279643,1713867042682,-76.20940909,0.00011478,2]
[323279646,1713867042694,-695.69059091,0.00011478,2]
[323279648,1713867042703,-232.48320392,0.00011478,2]
[323279652,1713867042728,-267.51679608,0.00011478,2]
[323279654,1713867042737,-265.32456251,0.00011478,2]
[323279657,1713867042756,-234.67543749,0.00011478,2]
[323279659,1713867042765,-167.24120134,0.00011478,2]
[323279662,1713867042783,-2139.34879866,0.00011478,2]
[323279664,1713867042792,-500.0,0.00011478,2]
[323279666,1713867042801,-500.0,0.00011478,2]
[323279668,1713867042810,-500.0,0.00011478,2]
[323279670,1713867042819,-500.0,0.00011478,2]
[323279672,1713867042828,-6983.82,0.00011478,2]
[323279674,1713867042838,-532.61,0.00011478,2]
[323279676,1713867042848,-500.0,0.00011478,2]
[323279679,1713867042857,-500.0,0.00011478,2]
[323279680,1713867042867,-500.0,0.00011478,2]
[323279683,1713867042876,-1598.16,0.00011478,2]
[323279684,1713867042885,-500.0,0.00011478,2]
[323279686,1713867042894,-500.0,0.00011478,2]
[323279688,1713867042903,-500.0,0.00011478,2]
[323279691,1713867042913,-1943.01,0.00011478,2]
[323279693,1713867042922,-500.0,0.00011478,2]
[323279695,1713867042931,-500.0,0.00011478,2]
[323279696,1713867042940,-1200.73,0.00011478,2]
[323279698,1713867042949,-500.0,0.00011478,2]
[323279700,1713867042957,-500.0,0.00011478,2]
[323279703,1713867042968,-1093.5,0.00011478,2]
[323279705,1713867042977,-808.6,0.00011478,2]
[323279707,1713867042986,-500.0,0.00011478,2]
[323279709,1713867042995,-258.4555924,0.00011478,2]
[323279711,1713867043005,-500.0,0.00011478,2]
[323279712,1713867043014,-1606.23,0.00011478,2]
[323279714,1713867043023,-1278.78,0.00011478,2]
[323279716,1713867043032,-696.71,0.00011478,2]
[323279719,1713867043041,-500.0,0.00011478,2]
[323279721,1713867043050,-22053.67972481,0.00011478,2]
[323279723,1713867043062,-4745.56027519,0.00011478,2]
[323279725,1713867043071,-500.0,0.00011478,2]
[323279727,1713867043080,-922.35,0.00011478,2]
[323279729,1713867043089,-501.60252294,0.00011478,2]
[323279731,1713867043098,-500.0,0.00011478,2]
[323279733,1713867043107,-500.0,0.00011478,2]
[323279735,1713867043116,-500.0,0.00011478,2]
[323279737,1713867043125,-2362.82,0.00011478,2]
[323279739,1713867043135,-500.0,0.00011478,2]
[323279741,1713867043151,-1230.68,0.00011478,2]
[323279743,1713867043182,-3337.25,0.00011478,2]
[323279745,1713867043214,-500.0,0.00011478,2]
[323279747,1713867043236,-1174.51,0.00011478,2]
[323279749,1713867043271,-866.45,0.00011478,2]
[323279751,1713867043316,-788.76825139,0.00011479,2]
[323279753,1713867043364,-1060.52885847,0.00011479,2]
[323279771,1713867043374,-2338.20773115,0.00011479,2]
[323279772,1713867043617,-500.0,0.00011479,2]
[323279773,1713867043627,-6180.813,0.00011479,2]
[323279774,1713867043637,-500.0,0.00011479,2]
[323279775,1713867043646,-500.0,0.00011479,2]
[323279776,1713867043655,-498.1579692,0.00011479,2]
[323279777,1713867043664,-1498.97,0.00011479,2]
[323279778,1713867043674,-500.0,0.00011479,2]
[323279779,1713867043683,-1872.96,0.00011479,2]
[323279780,1713867043692,-500.0,0.00011479,2]
[323279781,1713867043701,-500.0,0.00011479,2]
[323279782,1713867043710,-1188.18,0.00011479,2]
[323279784,1713867043719,-500.0,0.00011479,2]
[323279786,1713867043728,-1529.57,0.00011479,2]
[323279787,1713867043738,-627.97,0.00011479,2]
[323279788,1713867043748,-563.5,0.00011479,2]
[323279789,1713867043757,-500.0,0.00011479,2]
[323279790,1713867043766,-453.15212751,0.00011479,2]
[323279791,1713867043776,-500.0,0.00011479,2]
[323279792,1713867043785,-500.0,0.00011479,2]
[323279793,1713867043794,-500.0,0.00011479,2]
[323279794,1713867043803,-500.0,0.00011479,2]
[323279795,1713867043812,-747.95,0.00011479,2]
[323279796,1713867043821,-500.0,0.00011479,2]
[323279797,1713867043831,-490.97293598,0.00011479,2]
[323279798,1713867043839,-525.9477692,0.00011479,2]
[323279799,1713867043849,-500.0,0.00011479,2]
[323279800,1713867043858,-500.0,0.00011479,2]
[323279801,1713867043867,-2041.69,0.00011479,2]
[323279802,1713867043876,-551.74,0.00011479,2]
[323279803,1713867043886,-449.68954738,0.00011479,2]
[323279804,1713867043895,-1500.18,0.00011479,2]
[323279805,1713867043904,-9169.45,0.00011479,2]
[323279806,1713867043913,-3220.9,0.00011479,2]
[323279807,1713867043922,-500.0,0.00011479,2]
[323279808,1713867043931,-500.0,0.00011479,2]
[323279809,1713867043940,-810.05,0.00011479,2]
[323279810,1713867043949,-553.84,0.00011479,2]
[323279811,1713867043958,-500.0,0.00011479,2]
[323279812,1713867043968,-570.09,0.00011479,2]
[323279813,1713867043980,-500.0,0.00011479,2]
[323279814,1713867043989,-500.0,0.00011479,2]
[323279815,1713867043998,-500.0,0.00011479,2]
[323279816,1713867044007,-500.0,0.00011479,2]
[323279817,1713867044017,-10026.29,0.00011479,2]
[323279818,1713867044026,-1492.88,0.00011479,2]
[323279819,1713867044035,-1897.0,0.00011479,2]
[323279820,1713867044044,-500.0,0.00011479,2]
[323279821,1713867044054,-500.0,0.00011479,2]
[323279822,1713867044063,-1451.26,0.00011479,2]
[323279823,1713867044072,-906.58,0.0001148,2]
[323279824,1713867044081,-761.11,0.0001148,2]
[323279825,1713867044091,-191.47128329,0.0001148,2]
[323279826,1713867044100,-500.0,0.0001148,2]
[323279827,1713867044109,-902.66,0.0001148,2]
[323279828,1713867044118,-500.0,0.0001148,2]
[323279829,1713867044128,-500.0,0.0001148,2]
[323279830,1713867044137,-803.35,0.0001148,2]
[323279831,1713867044147,-218.54637711,0.0001148,2]
[323279832,1713867044157,-938.43,0.0001148,2]
[323279833,1713867044166,-531.05,0.0001148,2]
[323279834,1713867044175,-681.59,0.0001148,2]
[323279835,1713867044185,-500.0,0.0001148,2]
[323279836,1713867044195,-946.22,0.0001148,2]
[323279837,1713867044207,-500.0,0.0001148,2]
[323279838,1713867044218,-594.64944782,0.0001148,2]
[323279839,1713867044227,-1144.9,0.0001148,2]
[323279840,1713867044236,-500.0,0.0001148,2]
[323279841,1713867044246,-500.0,0.0001148,2]
[323279842,1713867044255,-500.0,0.0001148,2]
[323279843,1713867044265,-500.0,0.0001148,2]
[323279844,1713867044274,-504.07438619,0.0001148,2]
[323279845,1713867044284,-500.0,0.0001148,2]
[323279846,1713867044294,-500.0,0.0001148,2]
[323279847,1713867044303,-500.0,0.0001148,2]
[323279848,1713867044314,-966.01,0.0001148,2]
[323279849,1713867044323,-500.0,0.0001148,2]
[323279850,1713867044332,-500.0,0.0001148,2]
[323279851,1713867044342,-579.09,0.0001148,2]
[323279852,1713867044351,-500.0,0.0001148,2]
[323279853,1713867044360,-500.0,0.0001148,2]
[323279854,1713867044370,-500.0,0.0001148,2]
[323279855,1713867044379,-500.0,0.0001148,2]
[323279856,1713867044387,-500.0,0.0001148,2]
[323279857,1713867044396,-500.0,0.0001148,2]
[323279858,1713867044405,-500.0,0.0001148,2]
[323279859,1713867044415,-500.0,0.0001148,2]
[323279860,1713867044424,-708.16,0.0001148,2]
[323279861,1713867044433,-581.03,0.0001148,2]
[323279862,1713867044442,-656.46,0.0001148,2]
[323279863,1713867044450,-500.0,0.0001148,2]
[323279864,1713867044460,-500.0,0.0001148,2]
[323279865,1713867044471,-500.0,0.0001148,2]
[323279866,1713867044480,-439.56850667,0.0001148,2]
[323279867,1713867044489,-500.0,0.0001148,2]
[323279868,1713867044499,-500.0,0.0001148,2]
[323279869,1713867044508,-500.0,0.0001148,2]
[323279870,1713867044517,-212.19371863,0.0001148,2]
[323279871,1713867044526,-500.0,0.0001148,2]
[323279872,1713867044536,-500.0,0.0001148,2]
[323279873,1713867044545,-516.81,0.0001148,2]
[323279874,1713867044554,-552.73,0.0001148,2]
[323279875,1713867044563,-972.45,0.0001148,2]
[323279876,1713867044572,-500.0,0.00011481,2]
[323279877,1713867044581,-500.0,0.00011481,2]
[323279878,1713867044590,-500.0,0.00011481,2]
[323279879,1713867044599,-500.0,0.00011481,2]
[323279880,1713867044609,-500.0,0.00011481,2]
[323279881,1713867044618,-150.0,0.00011494,2]
[323279882,1713867044627,-150.0,0.00011498,2]
[323279883,1713867044636,-12610.79589738,0.000115,2]
[323279884,1713867044645,-150.0,0.00011506,2]
[323279885,1713867044654,-150.0,0.00011508,2]
[323279886,1713867044663,-150.0,0.00011516,2]
[323279887,1713867044673,-150.0,0.00011521,2]
[323279888,1713867044682,-150.0,0.00011524,2]
[323279889,1713867044691,-150.0,0.00011531,2]
[323279890,1713867044700,-150.0,0.00011532,2]
[323279892,1713867044709,-499.99,0.00011534,2]
[323279894,1713867044720,-150.0,0.00011535,2]
[323279896,1713867044729,-150.0,0.00011543,2]
[323279898,1713867044738,-150.0,0.00011551,2]
[323279900,1713867044747,-150.0,0.00011554,2]
[323279902,1713867044756,-150.0,0.0001157,2]
[323279904,1713867044765,-150.0,0.00011577,2]
[323279906,1713867044774,-500.0,0.0001158,2]
[323279908,1713867044783,-230.38160352,0.00011584,2]
[323279910,1713867044792,-1500.0,0.0001159,2]
[323279912,1713867044802,-150.0,0.00011597,2]
[323279914,1713867044812,-201.73003455,0.000116,2]
[323279917,1713867044823,-700.0,0.000116,4]
[323279919,1713867044833,-150.0,0.00011602,2]
[323279921,1713867044842,-1500.0,0.00011602,2]
[323279923,1713867044852,-150.0,0.00011603,2]
[323279925,1713867044861,-150.0,0.00011604,2]
[323279927,1713867044870,-150.0,0.00011611,2]
[323279929,1713867044879,-150.0,0.00011632,2]
[323279931,1713867044888,-150.0,0.0001164,2]
[323279933,1713867044897,-150.0,0.00011642,2]
[323279935,1713867044905,-301.18144149,0.00011645,2]
[323279937,1713867044914,-173.80588472,0.00011652,2]
[323279939,1713867044923,-500.0,0.00011653,2]
[323279940,1713867044932,-500.0,0.00011653,2]
[323279942,1713867044941,-5749.84415588,0.00011653,2]